[Event "14th Poti Open-A 2019"]
[Site "Poti"]
[Date "2019.07.18"]
[Round "7.16"]
[White "Ohanyan, Emin"]
[Black "Manafov, Vugar"]
[Result "0-1"]
[ECO "B03"]
[WhiteElo "1950"]
[BlackElo "2175"]
[Annotator "NA"]
[PlyCount "92"]
[EventDate "2019.07.13"]
[EventType "swiss"]
[EventCountry "GEO"]
[SourceTitle "playchess.com"]
[Source "ChessBase"]
[SourceQuality "1"]
[TimeControl "40/5400+30:1800+30"]

1. e4 {[%emt 0:00:00]} Nf6 {[%emt 0:00:00]} 2. e5 {[%emt 0:00:00]} Nd5 {[%emt 0:00:00]} 3. d4 {[%emt 0:00:00]} d6 {[%emt 0:00:00]} 4. c4 {[%emt 0:00:00]} Nb6 {[%emt 0:00:00]} 5. f4 {[%emt 0:00:00]} dxe5 {[%emt 0:00:00]} 6. fxe5 {[%emt 0:00:00]} Bf5 {[%emt 0:00:00]} 7. Nc3 {[%emt 0:00:31]} e6 {[%emt 0:00:00]} 8. Nf3 {[%emt 0:00:04]} Be7 {[%emt 0:00:00]} 9. Be3 {[%emt 0:00:13]} O-O {[%emt 0:00:00]} 10. Be2 {[%emt 0:00:02]} f6 {[%emt 0:00:00]} 11. O-O {[%emt 0:00:04]} Nc6 {[%emt 0:00:33]} 12. exf6 {[%emt 0:00:33]} Bxf6 {[%emt 0:00:04]} 13. Qd2 {[%emt 0:00:15]} Qe8 {[%emt 0:00:58]} 14. Rad1 {[%emt 0:02:43]} Rd8 {[%emt 0:00:29]} 15. Qc1 {[%emt 0:03:48]} Qg6 {[%emt 0:01:43]} 16. Kh1 {[%emt 0:11:59]} Nb4 {[%emt 0:15:38]} 17. d5 {[%emt 0:19:03]} Nd3 {[%emt 0:04:33]} 18. Bxd3 {[%emt 0:04:54]} Bxd3 {[%emt 0:00:19]} 19. Rfe1 Nxc4 {[%emt 0:09:09]} 20. Bc5 {[%emt 0:11:52]} Rfe8 {[%emt 0:01:44]} 21. dxe6 {[%emt 0:03:19]} Qf5 {[%emt 0:00:24]} 22. Bg1 {[%emt 0:15:50]} Rxe6 {[%emt 0:00:49]} 23. Rxe6 {[%emt 0:00:07]} Qxe6 {[%emt 0:00:02]} 24. Nd4 {[%emt 0:01:25]} Bxd4 {[%emt 0:02:13]} 25. Rxd3 {[%emt 0:00:07]} Bf6 {[%emt 0:00:36]} 26. Rxd8+ Bxd8 {[%emt 0:00:01]} 27. Qd1 {[%emt 0:08:05]} Nd6 {[%emt 0:05:01]} 28. Nd5 {[%emt 0:07:45]} a6 {[%emt 0:00:56]} 29. Bc5 {[%emt 0:05:07]} Qe5 {[%emt 0:05:56]} 30. Bxd6 Qxd6 {[%emt 0:01:15]} 31. Qe2 {[%emt 0:01:30]} c6 {[%emt 0:01:41]} 32. Nc3 {[%emt 0:00:22]} h6 {[%emt 0:00:30]} 33. g3 {[%emt 0:00:35]} Bf6 {[%emt 0:02:02]} 34. Ne4 {[%emt 0:02:19]} Qd5 {[%emt 0:00:08]} 35. b3 {[%emt 0:00:12]} b5 {[%emt 0:00:21]} 36. Qf3 {[%emt 0:03:12]} Bd4 {[%emt 0:01:14]} 37. Kg2 {[%emt 0:00:41]} Qe6 {[%emt 0:00:34]} 38. Qd3 c5 {[%emt 0:03:48]} 39. b4 {[%emt 0:02:12]} Qc4 {[%emt 0:01:16]} 40. Qf3 {[%emt 0:00:00]} Qxa2+ {[%emt 0:00:00]} 41. Kh1 {[%emt 0:01:48]} cxb4 {[%emt 0:00:31]} 42. Nd6 Qe6 {[%emt 0:00:22]} 43. Nf5 {[%emt 0:01:46]} Bf6 {[%emt 0:00:18]} 44. Qg4 {[%emt 0:00:03]} Kh8 {[%emt 0:00:30]} 45. Qg6 {[%emt 0:00:34]} Qe4+ {[%emt 0:00:05]} 46. Kg1 {[%emt 0:00:07]} Bd4+ {[%emt 0:00:04]} 0-1

[Event "14th Poti Open-A 2019"]
[Site "Poti"]
[Date "2019.07.18"]
[Round "7.17"]
[White "Manukyan, Aleks"]
[Black "Mindiashvili, Tengiz"]
[Result "1-0"]
[ECO "E40"]
[WhiteElo "2097"]
[BlackElo "1862"]
[Annotator "NA"]
[PlyCount "82"]
[EventDate "2019.07.13"]
[EventType "swiss"]
[EventCountry "GEO"]
[SourceTitle "playchess.com"]
[Source "ChessBase"]
[SourceQuality "1"]
[TimeControl "40/5400+30:1800+30"]

1. d4 {[%emt 0:00:00]} Nf6 {[%emt 0:00:14]} 2. c4 {[%emt 0:00:00]} e6 {[%emt 0:00:15]} 3. Nc3 {[%emt 0:00:00]} Bb4 {[%emt 0:00:10]} 4. e3 {[%emt 0:00:00]} Bxc3+ {[%emt 0:02:21]} 5. bxc3 {[%emt 0:00:00]} d6 {[%emt 0:00:33]} 6. Bd3 {[%emt 0:00:05]} Nc6 {[%emt 0:00:25]} 7. e4 {[%emt 0:01:00]} h6 {[%emt 0:01:42]} 8. Ne2 {[%emt 0:01:16]} e5 {[%emt 0:00:19]} 9. O-O {[%emt 0:00:42]} O-O {[%emt 0:01:30]} 10. f4 {[%emt 0:01:56]} Bg4 {[%emt 0:02:27]} 11. d5 {[%emt 0:02:58]} Nb8 {[%emt 0:02:20]} 12. fxe5 {[%emt 0:00:43]} dxe5 {[%emt 0:00:19]} 13. h3 {[%emt 0:03:38]} Bxe2 {[%emt 0:00:37]} 14. Qxe2 {[%emt 0:00:07]} Nbd7 {[%emt 0:02:30]} 15. Ba3 {[%emt 0:02:49]} b6 {[%emt 0:03:34]} 16. Qf2 {[%emt 0:01:44]} Nh5 {[%emt 0:03:24]} 17. g3 {[%emt 0:06:19]} Qf6 {[%emt 0:07:07]} 18. Qe3 {[%emt 0:04:12]} Qg5 {[%emt 0:08:41]} 19. Qxg5 {[%emt 0:00:23]} hxg5 {[%emt 0:00:02]} 20. Kg2 {[%emt 0:02:36]} g6 {[%emt 0:04:46]} 21. Rab1 {[%emt 0:03:27]} Rab8 {[%emt 0:01:47]} 22. Rb5 {[%emt 0:05:57]} Ng7 {[%emt 0:10:17]} 23. g4 {[%emt 0:02:32]} Rfc8 {[%emt 0:07:14]} 24. c5 {[%emt 0:05:43]} c6 {[%emt 0:12:07]} 25. dxc6 {[%emt 0:00:36]} Rxc6 {[%emt 0:00:08]} 26. Bc4 {[%emt 0:00:50]} Ne6 {[%emt 0:00:22]} 27. Bd5 {[%emt 0:02:04]} Rxc5 {[%emt 0:10:12]} 28. Bxe6 {[%emt 0:01:59]} fxe6 {[%emt 0:03:26]} 29. Bxc5 {[%emt 0:00:08]} Nxc5 {[%emt 0:00:01]} 30. Rd1 {[%emt 0:02:49]} Rf8 {[%emt 0:00:26]} 31. Rb4 {[%emt 0:02:30]} Rc8 {[%emt 0:01:50]} 32. a4 {[%emt 0:01:54]} Kf7 {[%emt 0:00:22]} 33. a5 bxa5 {[%emt 0:02:01]} 34. Rc4 {[%emt 0:05:19]} Ke7 {[%emt 0:00:45]} 35. Kg3 {[%emt 0:02:36]} a4 {[%emt 0:00:55]} 36. h4 {[%emt 0:01:40]} a3 {[%emt 0:02:20]} 37. h5 {[%emt 0:02:41]} a2 {[%emt 0:00:49]} 38. Ra1 {[%emt 0:00:52]} gxh5 {[%emt 0:01:43]} 39. gxh5 {[%emt 0:00:39]} Kd6 {[%emt 0:01:34]} 40. Rxa2 {[%emt 0:00:42]} Rh8 {[%emt 0:02:12]} 41. Kg4 {[%emt 0:31:22]} Nd3 {[%emt 0:31:50]} 1-0

[Event "14th Poti Open-A 2019"]
[Site "Poti"]
[Date "2019.07.18"]
[Round "7.18"]
[White "Licheli, Luka"]
[Black "Qalichava, Akaki"]
[Result "0-1"]
[ECO "B20"]
[WhiteElo "2046"]
[BlackElo "1808"]
[Annotator "NA"]
[PlyCount "95"]
[EventDate "2019.07.13"]
[EventType "swiss"]
[EventCountry "GEO"]
[SourceTitle "playchess.com"]
[Source "ChessBase"]
[SourceQuality "1"]
[TimeControl "40/5400+30:1800+30"]

1. e4 {[%emt 0:22:09]} c5 {[%emt 0:00:03]} 2. b3 {[%emt 0:00:32]} Nf6 {[%emt 0:00:04]} 3. e5 {[%emt 0:00:06]} Ng8 {[%emt 0:00:04]} 4. Bb2 {[%emt 0:02:36]} Nc6 {[%emt 0:00:06]} 5. Nf3 {[%emt 0:02:18]} d5 {[%emt 0:00:05]} 6. exd6 {[%emt 0:11:15]} Qxd6 {[%emt 0:01:17]} 7. g3 {[%emt 0:13:19]} e5 {[%emt 0:04:35]} 8. Nxe5 {[%emt 0:12:50]} Nxe5 {[%emt 0:01:54]} 9. Qe2 {[%emt 0:00:03]} f6 {[%emt 0:00:06]} 10. f4 {[%emt 0:00:21]} Bg4 {[%emt 0:01:18]} 11. fxe5 {[%emt 0:06:30]} Bxe2 {[%emt 0:01:29]} 12. exd6 {[%emt 0:00:04]} Bxf1 {[%emt 0:00:05]} 13. Kxf1 {[%emt 0:02:03]} Bxd6 {[%emt 0:01:07]} 14. d3 {[%emt 0:02:07]} O-O-O {[%emt 0:01:28]} 15. Nd2 {[%emt 0:00:31]} b6 {[%emt 0:00:17]} 16. Ne4 {[%emt 0:00:45]} Bc7 {[%emt 0:01:29]} 17. Re1 {[%emt 0:01:42]} h5 {[%emt 0:01:22]} 18. Kg2 {[%emt 0:05:54]} Nh6 {[%emt 0:03:08]} 19. Re2 {[%emt 0:01:54]} Ng4 {[%emt 0:04:26]} 20. Nd2 {[%emt 0:05:31]} h4 {[%emt 0:06:33]} 21. h3 {[%emt 0:00:55]} Ne5 {[%emt 0:00:22]} 22. Bxe5 {[%emt 0:00:51]} Bxe5 {[%emt 0:00:16]} 23. gxh4 {[%emt 0:05:27]} Rd7 {[%emt 0:02:22]} 24. Re4 {[%emt 0:00:29]} Kd8 {[%emt 0:00:55]} 25. Nf3 {[%emt 0:00:18]} Bd6 {[%emt 0:00:49]} 26. Rg1 {[%emt 0:01:36]} Re7 {[%emt 0:00:40]} 27. Rxe7 {[%emt 0:00:32]} Kxe7 {[%emt 0:00:04]} 28. Re1+ {[%emt 0:00:26]} Kf7 {[%emt 0:00:05]} 29. Re4 {[%emt 0:00:48]} Be7 {[%emt 0:04:08]} 30. a4 {[%emt 0:00:29]} f5 {[%emt 0:01:56]} 31. Rf4 {[%emt 0:00:26]} Kf6 {[%emt 0:00:21]} 32. Rc4 {[%emt 0:00:19]} Bd6 {[%emt 0:01:09]} 33. d4 {[%emt 0:00:25]} Re8 {[%emt 0:00:24]} 34. Kf1 {[%emt 0:00:40]} cxd4 {[%emt 0:00:59]} 35. Rxd4 {[%emt 0:00:41]} Bc5 {[%emt 0:00:19]} 36. Rd7 {[%emt 0:00:32]} a5 {[%emt 0:00:10]} 37. Ng5 {[%emt 0:00:30]} Re3 {[%emt 0:00:40]} 38. Rd3 {[%emt 0:00:22]} Re7 {[%emt 0:01:42]} 39. Nf3 {[%emt 0:00:32]} f4 {[%emt 0:00:42]} 40. c3 {[%emt 0:00:32]} Kf5 {[%emt 0:00:51]} 41. h5 {[%emt 0:30:35]} Re8 {[%emt 0:31:31]} 42. Rd7 {[%emt 0:00:29]} Re3 {[%emt 0:00:31]} 43. Rf7+ {[%emt 0:00:14]} Ke4 {[%emt 0:00:45]} 44. Nd2+ {[%emt 0:00:44]} Kd3 {[%emt 0:00:18]} 45. Rd7+ {[%emt 0:00:31]} Kxc3 {[%emt 0:01:01]} 46. Nc4 {[%emt 0:00:29]} Rxh3 {[%emt 0:00:15]} 47. Rf7 {[%emt 0:00:32]} f3 {[%emt 0:00:40]} 48. Nd2 0-1

[Event "14th Poti Open-A 2019"]
[Site "Poti"]
[Date "2019.07.18"]
[Round "7.19"]
[White "Adamia, Jaba"]
[Black "Virabyan, Gor"]
[Result "0-1"]
[ECO "D44"]
[WhiteElo "1819"]
[BlackElo "2048"]
[Annotator "NA RC"]
[PlyCount "96"]
[EventDate "2019.07.13"]
[EventType "swiss"]
[EventCountry "GEO"]
[SourceTitle "playchess.com"]
[Source "ChessBase"]
[SourceQuality "1"]
[TimeControl "40/5400+30:1800+30"]

1. d4 d5 2. Nf3 e6 3. c4 c6 4. Nc3 Nf6 5. Bg5 dxc4 6. e4 b5 7. e5 h6 8. Bh4 g5 9. Nxg5 hxg5 10. Bxg5 Nbd7 11. exf6 Bb7 12. Qc2 Nxf6 13. Be2 Be7 14. Bf3 Qxd4 15. Ne2 Qd8 16. Bxf6 Bxf6 17. O-O Qc7 18. Ng3 O-O-O 19. a4 Bd4 20. Rfd1 Kb8 21. Rac1 Be5 22. Qe2 Bf4 23. Rc2 Qe5 24. Qf1 Rxd1 25. Qxd1 Qd6 26. Qe2 Qd3 27. Nf1 Qxe2 28. Bxe2 a6 29. g3 Bh6 30. Bf3 c5 31. Bxb7 Kxb7 32. f4 Bg7 33. Kg2 Kc6 34. axb5+ axb5 35. Ne3 Ra8 36. f5 Ra2 37. fxe6 fxe6 38. Nd1 c3 39. Nxc3 Bxc3 40. Rxc3 Rxb2+ 41. Kh3 c4 42. Re3 Kd5 43. Re1 c3 44. g4 c2 45. Rc1 b4 46. g5 b3 47. g6 Ra2 48. Kg4 b2 0-1

[Event "14th Poti Open-A 2019"]
[Site "Poti"]
[Date "2019.07.18"]
[Round "7.20"]
[White "Ismayil, Malak"]
[Black "Kvaratskhelia, Dimitri"]
[Result "0-1"]
[ECO "C41"]
[WhiteElo "1886"]
[BlackElo "2014"]
[Annotator "NA RC"]
[PlyCount "98"]
[EventDate "2019.07.13"]
[EventType "swiss"]
[EventCountry "GEO"]
[SourceTitle "playchess.com"]
[Source "ChessBase"]
[SourceQuality "1"]
[TimeControl "40/5400+30:1800+30"]

1. e4 {[%emt 0:00:00]} d6 {[%emt 0:00:00]} 2. d4 {[%emt 0:00:00]} Nf6 {[%emt 0:00:02]} 3. Nc3 {[%emt 0:00:00]} e5 {[%emt 0:00:02]} 4. Nf3 {[%emt 0:18:56]} Nbd7 {[%emt 0:00:15]} 5. g3 {[%emt 0:05:15]} Be7 {[%emt 0:00:35]} 6. Bg2 {[%emt 0:00:04]} O-O {[%emt 0:00:12]} 7. O-O {[%emt 0:00:06]} c6 {[%emt 0:00:22]} 8. a4 {[%emt 0:01:30]} Qc7 {[%emt 0:01:41]} 9. Nh4 {[%emt 0:04:23]} Re8 {[%emt 0:02:13]} 10. Kh1 {[%emt 0:05:44]} Bf8 {[%emt 0:06:17]} 11. Be3 {[%emt 0:00:57]} Nb6 {[%emt 0:04:28]} 12. b3 {[%emt 0:04:44]} Ng4 {[%emt 0:13:01]} 13. Bc1 {[%emt 0:00:59]} a5 {[%emt 0:03:11]} 14. h3 {[%emt 0:03:54]} Nf6 {[%emt 0:03:26]} 15. f4 {[%emt 0:00:46]} exd4 {[%emt 0:00:58]} 16. Qxd4 {[%emt 0:00:06]} Nbd7 {[%emt 0:02:22]} 17. Ba3 b6 {[%emt 0:05:16]} 18. Rad1 {[%emt 0:03:47]} Nc5 {[%emt 0:01:25]} 19. Rfe1 {[%emt 0:00:30]} Bb7 {[%emt 0:07:51]} 20. g4 {[%emt 0:04:59]} d5 {[%emt 0:05:51]} 21. exd5 {[%emt 0:04:31]} Nxb3 {[%emt 0:02:20]} 22. cxb3 {[%emt 0:00:10]} Rxe1+ {[%emt 0:01:36]} 23. Rxe1 {[%emt 0:00:05]} Bxa3 {[%emt 0:00:05]} 24. dxc6 {[%emt 0:02:53]} Bxc6 {[%emt 0:02:50]} 25. Nb5 {[%emt 0:00:52]} Bxg2+ {[%emt 0:02:56]} 26. Nxg2 {[%emt 0:00:15]} Qc5 {[%emt 0:01:45]} 27. Qd3 {[%emt 0:05:15]} Bb4 {[%emt 0:01:26]} 28. Re2 {[%emt 0:02:08]} Rc8 {[%emt 0:03:58]} 29. Kh2 {[%emt 0:13:48]} h6 {[%emt 0:00:22]} 30. Ne3 {[%emt 0:05:12]} Qc1 {[%emt 0:05:35]} 31. Ng2 {[%emt 0:10:43]} Qc6 {[%emt 0:10:12]} 32. Na7 {[%emt 0:01:59]} Qc3 {[%emt 0:00:12]} 33. Qd1 {[%emt 0:01:16]} Rf8 {[%emt 0:02:00]} 34. Re3 {[%emt 0:00:22]} Qc5 {[%emt 0:03:25]} 35. Nb5 {[%emt 0:00:33]} Rc8 {[%emt 0:01:00]} 36. Qf3 {[%emt 0:00:40]} Qd5 {[%emt 0:03:03]} 37. Qe2 {[%emt 0:00:26]} Rd8 {[%emt 0:01:09]} 38. Kg3 {[%emt 0:00:39]} Bc5 {[%emt 0:00:49]} 39. Rf3 {[%emt 0:00:01]} Qd2 {[%emt 0:01:13]} 40. Qc4 {[%emt 0:00:43]} Re8 {[%emt 0:01:07]} 41. Qf1 {[%emt 0:30:41]} Qb2 {[%emt 0:31:48]} 42. Kh2 {[%emt 0:00:31]} Re2 {[%emt 0:00:49]} 43. g5 {[%emt 0:00:33]} hxg5 {[%emt 0:00:43]} 44. fxg5 {[%emt 0:00:01]} Qe5+ {[%emt 0:00:07]} 45. Kh1 {[%emt 0:00:30]} Nh5 {[%emt 0:00:14]} 46. Qd1 {[%emt 0:00:31]} Ra2 {[%emt 0:01:18]} 47. Qd8+ {[%emt 0:00:28]} Bf8 {[%emt 0:00:39]} 48. Kg1 {[%emt 0:00:50]} Qe2 {[%emt 0:00:48]} 49. Nh4 {[%emt 0:00:35]} Qh2+ {[%emt 0:00:19]} 0-1

[Event "14th Poti Open-A 2019"]
[Site "Poti"]
[Date "2019.07.18"]
[Round "7.21"]
[White "Bechvaia, Gabriel"]
[Black "Mchedlishvili, Ramaz"]
[Result "1-0"]
[ECO "E16"]
[WhiteElo "1793"]
[BlackElo "1441"]
[Annotator "NA RC"]
[PlyCount "84"]
[EventDate "2019.07.13"]
[EventType "swiss"]
[EventCountry "GEO"]
[SourceTitle "playchess.com"]
[Source "ChessBase"]
[SourceQuality "1"]
[TimeControl "40/5400+30:1800+30"]

1. d4 {[%emt 0:00:00]} Nf6 {[%emt 0:00:00]} 2. c4 {[%emt 0:00:00]} e6 {[%emt 0:00:00]} 3. Nf3 {[%emt 0:00:00]} Bb4+ {[%emt 0:00:00]} 4. Bd2 {[%emt 0:00:00]} Qe7 {[%emt 0:00:00]} 5. Qc2 {[%emt 0:02:30]} O-O {[%emt 0:02:25]} 6. e4 {[%emt 0:00:42]} Bxd2+ {[%emt 0:01:36]} 7. Nbxd2 {[%emt 0:00:18]} d6 {[%emt 0:00:12]} 8. Bd3 {[%emt 0:00:29]} e5 {[%emt 0:01:37]} 9. O-O {[%emt 0:06:41]} Nc6 {[%emt 0:02:44]} 10. Qc3 {[%emt 0:06:16]} Bg4 {[%emt 0:04:45]} 11. d5 {[%emt 0:02:48]} Nb8 {[%emt 0:05:01]} 12. b4 {[%emt 0:06:29]} Bxf3 {[%emt 0:01:14]} 13. Nxf3 {[%emt 0:01:21]} a5 {[%emt 0:07:14]} 14. a3 {[%emt 0:01:46]} Na6 {[%emt 0:03:53]} 15. Rfc1 {[%emt 0:09:30]} Nd7 {[%emt 0:09:24]} 16. Nd2 {[%emt 0:07:47]} c6 {[%emt 0:06:23]} 17. dxc6 {[%emt 0:22:44]} bxc6 {[%emt 0:00:18]} 18. Nb3 {[%emt 0:03:15]} axb4 {[%emt 0:04:32]} 19. axb4 {[%emt 0:00:08]} c5 {[%emt 0:02:41]} 20. b5 {[%emt 0:08:50]} Nb4 {[%emt 0:00:27]} 21. Rd1 {[%emt 0:03:32]} Nb6 {[%emt 0:02:39]} 22. Be2 {[%emt 0:02:27]} Rxa1 {[%emt 0:03:38]} 23. Nxa1 {[%emt 0:04:27]} Ra8 {[%emt 0:04:18]} 24. Nc2 {[%emt 0:00:08]} Nxc2 25. Qxc2 {[%emt 0:00:02]} Kf8 {[%emt 0:08:35]} 26. Qd2 {[%emt 0:04:56]} Rd8 {[%emt 0:20:31]} 27. Ra1 {[%emt 0:01:14]} Qe6 {[%emt 0:03:13]} 28. Ra6 {[%emt 0:01:26]} Rb8 {[%emt 0:00:48]} 29. h3 {[%emt 0:01:05]} Ke7 {[%emt 0:01:13]} 30. Qa5 {[%emt 0:00:44]} Nd7 {[%emt 0:00:46]} 31. Qc7 {[%emt 0:00:23]} Qh6 {[%emt 0:01:16]} 32. g3 {[%emt 0:00:41]} Qc1+ {[%emt 0:00:54]} 33. Kg2 {[%emt 0:00:14]} Qd2 {[%emt 0:00:25]} 34. Bg4 {[%emt 0:00:51]} Rd8 {[%emt 0:00:17]} 35. Ra7 {[%emt 0:00:10]} Qd4 {[%emt 0:00:42]} 36. Qc6 {[%emt 0:00:09]} h5 {[%emt 0:00:55]} 37. Bxd7 {[%emt 0:00:43]} Kf6 {[%emt 0:00:01]} 38. Bf5 {[%emt 0:01:22]} g6 {[%emt 0:00:31]} 39. Qc7 {[%emt 0:00:02]} Rf8 {[%emt 0:00:08]} 40. Qe7+ {[%emt 0:00:13]} Kg7 {[%emt 0:00:01]} 41. Qg5 {[%emt 0:30:55]} Qxc4 {[%emt 0:30:45]} 42. Bxg6 {[%emt 0:00:17]} Rc8 1-0

[Event "14th Poti Open-A 2019"]
[Site "Poti"]
[Date "2019.07.18"]
[Round "7.22"]
[White "Naqopia, Giorgi"]
[Black "Nurijanyan, Alex"]
[Result "1-0"]
[ECO "B20"]
[WhiteElo "1680"]
[BlackElo "1610"]
[Annotator "NA"]
[PlyCount "53"]
[EventDate "2019.07.13"]
[EventType "swiss"]
[EventCountry "GEO"]
[SourceTitle "playchess.com"]
[Source "ChessBase"]
[SourceQuality "1"]
[TimeControl "40/5400+30:1800+30"]

1. e4 {[%emt 0:00:00]} c5 {[%emt 0:00:06]} 2. b4 {[%emt 0:00:13]} cxb4 {[%emt 0:00:25]} 3. a3 {[%emt 0:00:04]} d5 {[%emt 0:00:07]} 4. exd5 {[%emt 0:08:30]} Qxd5 {[%emt 0:00:47]} 5. Bb2 {[%emt 0:00:40]} Nf6 {[%emt 0:00:04]} 6. axb4 {[%emt 0:01:03]} Bg4 {[%emt 0:00:11]} 7. Ne2 {[%emt 0:01:12]} Nc6 {[%emt 0:00:56]} 8. Nbc3 {[%emt 0:02:37]} Qd7 {[%emt 0:00:10]} 9. h3 {[%emt 0:06:09]} Bh5 {[%emt 0:00:38]} 10. Qb1 {[%emt 0:15:30]} e5 {[%emt 0:01:54]} 11. b5 {[%emt 0:01:19]} Nb4 {[%emt 0:02:26]} 12. Ba3 {[%emt 0:02:09]} a5 {[%emt 0:05:01]} 13. bxa6 {[%emt 0:00:28]} Rxa6 {[%emt 0:01:17]} 14. Ng3 {[%emt 0:00:12]} Rb6 {[%emt 0:03:03]} 15. Bxb4 {[%emt 0:01:42]} Bxb4 {[%emt 0:00:06]} 16. Ra8+ {[%emt 0:06:20]} Ke7 {[%emt 0:00:04]} 17. Rxh8 {[%emt 0:02:15]} Bxc3 {[%emt 0:02:06]} 18. Nf5+ {[%emt 0:00:05]} Qxf5 {[%emt 0:00:42]} 19. Qxb6 {[%emt 0:00:26]} Qe4+ {[%emt 0:03:11]} 20. Qe3 {[%emt 0:00:14]} Qb4 {[%emt 0:04:42]} 21. f3 {[%emt 0:00:53]} Nd5 {[%emt 0:03:21]} 22. Qg5+ {[%emt 0:03:42]} f6 {[%emt 0:00:22]} 23. Qxg7+ {[%emt 0:00:08]} Ke6 {[%emt 0:01:13]} 24. Qg8+ {[%emt 0:00:06]} Kf5 {[%emt 0:02:27]} 25. Bd3+ {[%emt 0:00:08]} Kf4 {[%emt 0:00:38]} 26. g3+ {[%emt 0:00:07]} Kxf3 {[%emt 0:01:24]} 27. O-O# {[%emt 0:00:03]} 1-0

[Event "14th Poti Open-A 2019"]
[Site "Poti"]
[Date "2019.07.18"]
[Round "7.23"]
[White "Kavkasidze, Ilia"]
[Black "Mikayelyan, Mikael"]
[Result "0-1"]
[ECO "D02"]
[WhiteElo "1704"]
[BlackElo "1736"]
[Annotator "NA RC"]
[PlyCount "146"]
[EventDate "2019.07.13"]
[EventType "swiss"]
[EventCountry "GEO"]
[SourceTitle "playchess.com"]
[Source "ChessBase"]
[SourceQuality "1"]
[TimeControl "40/5400+30:1800+30"]

1. d4 {[%emt 0:00:00]} d5 {[%emt 0:00:00]} 2. Bf4 {[%emt 0:00:00]} Nf6 {[%emt 0:00:00]} 3. Nf3 {[%emt 0:00:05]} Bf5 {[%emt 0:00:14]} 4. e3 {[%emt 0:00:06]} e6 {[%emt 0:00:12]} 5. Bd3 {[%emt 0:00:28]} Bg6 {[%emt 0:00:44]} 6. Ne5 {[%emt 0:03:02]} Nbd7 {[%emt 0:00:29]} 7. Bg5 {[%emt 0:08:48]} Be7 {[%emt 0:00:19]} 8. Nd2 {[%emt 0:02:21]} Nxe5 {[%emt 0:02:03]} 9. dxe5 {[%emt 0:00:11]} Nd7 {[%emt 0:00:07]} 10. Bxe7 {[%emt 0:02:27]} Qxe7 {[%emt 0:00:07]} 11. f4 {[%emt 0:02:42]} Nc5 {[%emt 0:02:35]} 12. Qe2 {[%emt 0:02:04]} c6 {[%emt 0:04:11]} 13. h4 {[%emt 0:01:56]} Bxd3 {[%emt 0:06:51]} 14. cxd3 {[%emt 0:00:06]} h5 {[%emt 0:00:18]} 15. d4 {[%emt 0:01:35]} Na4 {[%emt 0:02:03]} 16. b3 {[%emt 0:02:44]} Nb6 {[%emt 0:01:00]} 17. Qd3 {[%emt 0:02:46]} Rh6 {[%emt 0:03:44]} 18. Nf3 {[%emt 0:15:52]} Nc8 {[%emt 0:06:36]} 19. a3 {[%emt 0:03:39]} Qd7 {[%emt 0:00:54]} 20. g3 {[%emt 0:02:28]} Ne7 {[%emt 0:01:19]} 21. Kf2 {[%emt 0:02:25]} Nf5 {[%emt 0:00:34]} 22. Rac1 {[%emt 0:02:04]} f6 {[%emt 0:04:18]} 23. Rcd1 {[%emt 0:04:38]} Kf7 {[%emt 0:03:02]} 24. Rhg1 {[%emt 0:00:37]} Rah8 {[%emt 0:02:09]} 25. g4 {[%emt 0:02:26]} hxg4 {[%emt 0:01:09]} 26. Rxg4 {[%emt 0:00:03]} Qe7 {[%emt 0:01:41]} 27. Rdg1 {[%emt 0:11:09]} Qxa3 {[%emt 0:00:38]} 28. Qc2 {[%emt 0:00:53]} Qe7 {[%emt 0:04:44]} 29. Ra1 {[%emt 0:09:26]} a6 {[%emt 0:00:30]} 30. Rag1 {[%emt 0:00:23]} Kf8 {[%emt 0:00:33]} 31. Qc3 {[%emt 0:01:21]} Qa3 {[%emt 0:10:06]} 32. Ra1 {[%emt 0:00:15]} Qe7 {[%emt 0:00:04]} 33. Rag1 {[%emt 0:00:04]} Kf7 {[%emt 0:00:30]} 34. Qc2 {[%emt 0:00:57]} R8h7 {[%emt 0:02:57]} 35. exf6 gxf6 {[%emt 0:01:39]} 36. Qd3 {[%emt 0:06:28]} Rh8 {[%emt 0:03:06]} 37. R1g2 {[%emt 0:02:38]} Kf8 {[%emt 0:00:20]} 38. Qc3 {[%emt 0:02:15]} Qa3 {[%emt 0:03:28]} 39. Rh2 {[%emt 0:01:58]} Kf7 {[%emt 0:01:38]} 40. Qc2 {[%emt 0:00:38]} a5 {[%emt 0:01:18]} 41. Rh1 {[%emt 0:30:31]} a4 {[%emt 0:32:11]} 42. Rb1 {[%emt 0:01:31]} axb3 {[%emt 0:04:20]} 43. Rxb3 {[%emt 0:00:25]} Qa6 {[%emt 0:00:50]} 44. Qb2 {[%emt 0:00:33]} Nd6 {[%emt 0:03:02]} 45. Qb1 {[%emt 0:02:50]} Ne4+ {[%emt 0:00:56]} 46. Kg1 {[%emt 0:00:05]} b5 {[%emt 0:00:27]} 47. Rb2 {[%emt 0:00:23]} Qa3 {[%emt 0:04:45]} 48. Rb3 {[%emt 0:00:29]} Qa8 {[%emt 0:01:21]} 49. Rb2 {[%emt 0:00:39]} Rg8 {[%emt 0:00:05]} 50. Rbg2 {[%emt 0:00:52]} Rxg4 {[%emt 0:00:10]} 51. Rxg4 {[%emt 0:00:01]} Qa3 {[%emt 0:00:22]} 52. Qe1 {[%emt 0:00:51]} b4 {[%emt 0:01:27]} 53. Ng5+ {[%emt 0:02:25]} fxg5 {[%emt 0:00:59]} 54. fxg5 {[%emt 0:00:08]} Rg6 {[%emt 0:01:52]} 55. Qf1+ {[%emt 0:00:08]} Ke7 {[%emt 0:00:16]} 56. Qf4 {[%emt 0:00:21]} Qa7 {[%emt 0:04:38]} 57. h5 {[%emt 0:00:15]} Rg8 {[%emt 0:01:24]} 58. g6 {[%emt 0:00:52]} Rf8 {[%emt 0:01:13]} 59. Qe5 {[%emt 0:00:44]} Qa1+ {[%emt 0:03:07]} 60. Kh2 {[%emt 0:00:03]} Rf2+ {[%emt 0:00:15]} 61. Rg2 {[%emt 0:00:46]} Rxg2+ {[%emt 0:00:34]} 62. Kxg2 {[%emt 0:00:01]} Qb2+ {[%emt 0:00:11]} 63. Kh3 {[%emt 0:00:13]} Qf2 {[%emt 0:00:15]} 64. g7 {[%emt 0:01:53]} Qxe3+ {[%emt 0:00:23]} 65. Kh4 {[%emt 0:00:48]} Qe1+ {[%emt 0:00:09]} 66. Kh3 {[%emt 0:00:42]} Nf2+ {[%emt 0:00:43]} 67. Kg2 {[%emt 0:00:03]} Qxe5 {[%emt 0:00:25]} 68. g8=Q {[%emt 0:00:12]} Qxh5 {[%emt 0:00:41]} 69. Qb8 {[%emt 0:00:15]} Ne4 {[%emt 0:00:18]} 70. Qc7+ {[%emt 0:00:14]} Kf6 {[%emt 0:00:11]} 71. Qd8+ {[%emt 0:00:20]} Kf5 {[%emt 0:00:16]} 72. Qf8+ {[%emt 0:00:39]} Nf6 {[%emt 0:00:03]} 73. Kf2 {[%emt 0:00:07]} b3 {[%emt 0:00:10]} 0-1